[Event "GER-ch Youth U18w 2019"]
[Site "Willingen"]
[Date "2019.06.12"]
[Round "6.1"]
[White "Schulze, Lara"]
[Black "Ratay, Meike"]
[Result "1/2-1/2"]
[ECO "B23"]
[WhiteElo "2160"]
[BlackElo "1991"]
[Annotator "NA"]
[PlyCount "72"]
[EventDate "2019.06.07"]
[EventType "swiss"]
[EventRounds "9"]
[EventCountry "GER"]
[SourceTitle "playchess.com"]
[Source "ChessBase"]
[SourceQuality "1"]
[TimeControl "40/5400+30:1800+30"]

1. e4 {[%emt 0:00:00]} c5 {[%emt 0:00:00]} 2. Nc3 {[%emt 0:00:00]} a6 {[%emt 0:00:12]} 3. g3 {[%emt 0:00:00]} b5 {[%emt 0:00:29]} 4. Bg2 {[%emt 0:00:00]} Bb7 {[%emt 0:00:12]} 5. d3 {[%emt 0:00:02]} e6 {[%emt 0:01:08]} 6. f4 {[%emt 0:00:21]} d5 {[%emt 0:03:25]} 7. f5 {[%emt 0:00:52]} d4 {[%emt 0:06:13]} 8. fxe6 {[%emt 0:00:39]} fxe6 {[%emt 0:07:02]} 9. Nce2 {[%emt 0:00:10]} e5 {[%emt 0:01:05]} 10. Nf3 {[%emt 0:00:21]} Nd7 {[%emt 0:00:47]} 11. O-O {[%emt 0:04:44]} Be7 {[%emt 0:02:57]} 12. c3 {[%emt 0:15:42]} Qb6 {[%emt 0:08:44]} 13. cxd4 {[%emt 0:06:10]} cxd4 {[%emt 0:00:17]} 14. Bh3 {[%emt 0:04:44]} Bf6 {[%emt 0:04:29]} 15. Bxd7+ {[%emt 0:18:25]} Kxd7 {[%emt 0:00:08]} 16. g4 {[%emt 0:00:12]} Qe6 {[%emt 0:11:05]} 17. g5 {[%emt 0:03:41]} Be7 {[%emt 0:00:38]} 18. Ng3 {[%emt 0:01:57]} g6 {[%emt 0:01:41]} 19. Bd2 {[%emt 0:03:23]} Bd6 {[%emt 0:05:39]} 20. Rc1 {[%emt 0:03:30]} Ne7 {[%emt 0:01:38]} 21. Nxd4 {[%emt 0:17:51]} exd4 {[%emt 0:06:01]} 22. Rf6 {[%emt 0:00:23]} Qh3 {[%emt 0:01:19]} 23. Rxd6+ {[%emt 0:04:16]} Kxd6 {[%emt 0:00:08]} 24. Bf4+ {[%emt 0:00:42]} Kd7 {[%emt 0:01:34]} 25. Rc7+ {[%emt 0:00:20]} Kd8 {[%emt 0:04:40]} 26. Rxb7 {[%emt 0:01:04]} Qe6 {[%emt 0:03:53]} 27. Qd2 {[%emt 0:06:55]} Nc6 {[%emt 0:04:15]} 28. Ne2 {[%emt 0:01:26]} Rc8 {[%emt 0:05:51]} 29. b3 {[%emt 0:05:05]} Qg4+ {[%emt 0:02:16]} 30. Bg3 {[%emt 0:00:41]} Rf8 {[%emt 0:06:32]} 31. Rxh7 {[%emt 0:00:59]} Ne5 {[%emt 0:04:21]} 32. Qb4 {[%emt 0:00:46]} Rc1+ {[%emt 0:04:56]} 33. Nxc1 {[%emt 0:00:25]} Qd1+ {[%emt 0:00:12]} 34. Be1 {[%emt 0:00:11]} Qg4+ {[%emt 0:00:49]} 35. Bg3 {[%emt 0:00:11]} Qd1+ {[%emt 0:00:04]} 36. Be1 {[%emt 0:00:05]} Qg4+ {[%emt 0:00:37] normal} 1/2-1/2

[Event "GER-ch Youth U18w 2019"]
[Site "Willingen"]
[Date "2019.06.12"]
[Round "6.2"]
[White "Arnhold, Steffi"]
[Black "Nguyen, Ha Thanh"]
[Result "1/2-1/2"]
[ECO "B38"]
[WhiteElo "1996"]
[BlackElo "1940"]
[Annotator "NA"]
[PlyCount "85"]
[EventDate "2019.06.07"]
[EventType "swiss"]
[EventRounds "9"]
[EventCountry "GER"]
[SourceTitle "playchess.com"]
[Source "ChessBase"]
[SourceQuality "1"]
[TimeControl "40/5400+30:1800+30"]

1. e4 {[%emt 0:00:00]} c5 {[%emt 0:00:00]} 2. Nf3 {[%emt 0:00:00]} Nc6 {[%emt 0:00:00]} 3. d4 {[%emt 0:00:00]} cxd4 {[%emt 0:00:00]} 4. Nxd4 {[%emt 0:00:00]} g6 {[%emt 0:00:00]} 5. c4 {[%emt 0:00:33]} Bg7 {[%emt 0:00:21]} 6. Be3 {[%emt 0:00:37]} Nf6 {[%emt 0:00:12]} 7. Nc3 {[%emt 0:00:11]} O-O {[%emt 0:00:15]} 8. Be2 {[%emt 0:00:31]} d6 {[%emt 0:00:12]} 9. O-O {[%emt 0:00:28]} Bd7 {[%emt 0:00:16]} 10. Qd2 {[%emt 0:00:34]} Nxd4 {[%emt 0:00:45]} 11. Bxd4 {[%emt 0:00:27]} Bc6 {[%emt 0:00:35]} 12. Bd3 {[%emt 0:00:41]} a5 {[%emt 0:02:24]} 13. Rae1 {[%emt 0:02:43]} e5 {[%emt 0:10:59]} 14. Be3 {[%emt 0:01:48]} h5 {[%emt 0:03:49]} 15. f3 {[%emt 0:06:05]} Qe7 {[%emt 0:14:15]} 16. Rd1 {[%emt 0:03:49]} Kh7 {[%emt 0:14:34]} 17. Bc2 {[%emt 0:02:14]} Rfd8 {[%emt 0:02:44]} 18. Ba4 {[%emt 0:04:41]} Qe6 {[%emt 0:13:40]} 19. b3 {[%emt 0:05:10]} Bf8 {[%emt 0:04:08]} 20. Bb6 {[%emt 0:02:16]} Rdc8 {[%emt 0:01:50]} 21. Nb5 {[%emt 0:03:50]} Bxb5 {[%emt 0:03:47]} 22. Bxb5 {[%emt 0:00:19]} d5 {[%emt 0:00:46]} 23. Bxa5 {[%emt 0:02:19]} dxe4 {[%emt 0:01:17]} 24. Bc3 {[%emt 0:18:28]} e3 {[%emt 0:04:05]} 25. Qe2 {[%emt 0:02:08]} Bc5 {[%emt 0:02:20]} 26. Kh1 {[%emt 0:00:51]} Rd8 {[%emt 0:00:52]} 27. Qb2 {[%emt 0:03:36]} Bd4 {[%emt 0:04:07]} 28. Rfe1 {[%emt 0:05:25]} Qb6 {[%emt 0:02:33]} 29. Bxd4 {[%emt 0:17:23]} exd4 {[%emt 0:00:07]} 30. Rd3 {[%emt 0:00:53]} Ng8 {[%emt 0:09:42]} 31. a4 {[%emt 0:02:41]} Nh6 {[%emt 0:00:46]} 32. b4 {[%emt 0:01:44]} Nf5 {[%emt 0:00:46]} 33. c5 {[%emt 0:01:15]} Qc7 {[%emt 0:00:54]} 34. Kg1 {[%emt 0:01:18]} Qf4 {[%emt 0:01:06]} 35. a5 {[%emt 0:03:01]} Ne7 {[%emt 0:01:12]} 36. Bc4 {[%emt 0:01:56]} h4 {[%emt 0:00:41]} 37. Qe2 {[%emt 0:01:28]} Nc6 {[%emt 0:00:23]} 38. Rb3 {[%emt 0:02:14]} Ne5 {[%emt 0:01:02]} 39. Bd3 {[%emt 0:00:15]} h3 {[%emt 0:00:24]} 40. Rf1 {[%emt 0:01:26]} hxg2 {[%emt 0:00:30]} 41. Qxg2 {[%emt 0:31:09]} Nxd3 {[%emt 0:04:44]} 42. Rxd3 {[%emt 0:00:00]} Qe5 {[%emt 0:02:44]} 43. f4 {[%emt 0:00:00] normal} 1/2-1/2

[Event "GER-ch Youth U18w 2019"]
[Site "Willingen"]
[Date "2019.06.12"]
[Round "6.3"]
[White "Moenster, Madita"]
[Black "Poetsch, Leonore"]
[Result "1/2-1/2"]
[ECO "C11"]
[WhiteElo "1994"]
[BlackElo "1982"]
[Annotator "NA"]
[PlyCount "101"]
[EventDate "2019.06.07"]
[EventType "swiss"]
[EventRounds "9"]
[EventCountry "GER"]
[SourceTitle "playchess.com"]
[Source "ChessBase"]
[SourceQuality "1"]
[TimeControl "40/5400+30:1800+30"]

1. e4 {[%emt 0:00:00]} e6 {[%emt 0:00:00]} 2. d4 {[%emt 0:00:00]} d5 {[%emt 0:00:00]} 3. Nc3 {[%emt 0:00:00]} Nf6 {[%emt 0:00:00]} 4. e5 {[%emt 0:00:00]} Nfd7 {[%emt 0:00:05]} 5. f4 {[%emt 0:00:01]} c5 {[%emt 0:00:08]} 6. Nf3 {[%emt 0:00:09]} Nc6 {[%emt 0:00:06]} 7. Be3 {[%emt 0:00:11]} Be7 {[%emt 0:00:21]} 8. Qd2 {[%emt 0:00:24]} O-O {[%emt 0:00:27]} 9. dxc5 {[%emt 0:00:32]} Nxc5 {[%emt 0:01:11]} 10. O-O-O {[%emt 0:02:22]} a6 {[%emt 0:04:20]} 11. h4 {[%emt 0:17:16]} b5 {[%emt 0:03:03]} 12. Bd3 {[%emt 0:08:11]} Nxd3+ {[%emt 0:03:25]} 13. Qxd3 {[%emt 0:02:32]} Nb4 {[%emt 0:07:39]} 14. Qe2 {[%emt 0:03:59]} Bb7 {[%emt 0:06:30]} 15. Ng5 {[%emt 0:03:48]} Qa5 {[%emt 0:07:34]} 16. a3 {[%emt 0:11:37]} Nc6 {[%emt 0:06:14]} 17. Qd3 {[%emt 0:01:02]} g6 {[%emt 0:01:16]} 18. h5 {[%emt 0:02:22]} Bxg5 {[%emt 0:01:12]} 19. fxg5 {[%emt 0:00:34]} Nxe5 {[%emt 0:07:28]} 20. Qd4 {[%emt 0:05:08]} Nc6 {[%emt 0:17:42]} 21. Qh4 {[%emt 0:02:04]} Qc7 {[%emt 0:01:30]} 22. Rxd5 {[%emt 0:09:41]} Rfd8 {[%emt 0:16:58]} 23. Rxd8+ {[%emt 0:06:05]} Nxd8 {[%emt 0:01:07]} 24. Qf2 {[%emt 0:02:35]} Qe5 {[%emt 0:02:11]} 25. hxg6 {[%emt 0:06:22]} fxg6 {[%emt 0:00:32]} 26. Rf1 {[%emt 0:01:59]} Qf5 {[%emt 0:01:13]} 27. Qe1 {[%emt 0:02:51]} Qe5 {[%emt 0:02:48]} 28. Qd2 {[%emt 0:05:14]} Nf7 {[%emt 0:04:08]} 29. g4 {[%emt 0:02:48]} Rd8 {[%emt 0:00:45]} 30. Qf2 {[%emt 0:00:57]} Nxg5 {[%emt 0:01:12]} 31. Bf4 {[%emt 0:00:41]} Qf6 {[%emt 0:01:52]} 32. Kb1 {[%emt 0:00:59]} Nf3 {[%emt 0:00:42]} 33. Bc1 {[%emt 0:00:57]} Qd4 {[%emt 0:00:48]} 34. Qg3 {[%emt 0:00:47]} Nd2+ {[%emt 0:01:00]} 35. Bxd2 {[%emt 0:00:07]} Qxd2 {[%emt 0:00:05]} 36. Qc7 {[%emt 0:02:08]} Qd7 {[%emt 0:00:15]} 37. Qe5 {[%emt 0:00:25]} Qe7 {[%emt 0:01:06]} 38. Re1 {[%emt 0:00:24]} Re8 {[%emt 0:00:23]} 39. g5 {[%emt 0:00:41]} Qf7 {[%emt 0:01:02]} 40. Ne2 {[%emt 0:01:29]} Qf5 {[%emt 0:00:37]} 41. Qe3 {[%emt 0:02:01]} e5 {[%emt 0:06:52]} 42. Ng3 {[%emt 0:04:04]} Qf3 {[%emt 0:02:39]} 43. Qg1 {[%emt 0:00:40]} e4 {[%emt 0:04:20]} 44. Rf1 {[%emt 0:01:24]} Qg4 {[%emt 0:00:50]} 45. Qb6 {[%emt 0:05:52]} Qd7 {[%emt 0:02:06]} 46. Qe3 {[%emt 0:01:49]} Qd5 {[%emt 0:02:26]} 47. Re1 {[%emt 0:07:01]} Re5 {[%emt 0:03:29]} 48. Qf4 {[%emt 0:03:01]} e3 {[%emt 0:01:57]} 49. Rf1 {[%emt 0:04:11]} Re8 {[%emt 0:00:45]} 50. Ne4 {[%emt 0:00:46]} Qxe4 {[%emt 0:07:30]} 51. Qf7+ {normal} 1/2-1/2

[Event "GER-ch Youth U18w 2019"]
[Site "Willingen"]
[Date "2019.06.12"]
[Round "6.4"]
[White "Moeller, Lisa-Marie"]
[Black "Fock, Sana"]
[Result "1-0"]
[ECO "B52"]
[WhiteElo "1900"]
[BlackElo "1796"]
[Annotator "NA"]
[PlyCount "101"]
[EventDate "2019.06.07"]
[EventType "swiss"]
[EventRounds "9"]
[EventCountry "GER"]
[SourceTitle "playchess.com"]
[Source "ChessBase"]
[SourceQuality "1"]
[TimeControl "40/5400+30:1800+30"]

1. e4 {[%emt 0:00:00]} c5 {[%emt 0:00:00]} 2. Nf3 {[%emt 0:00:00]} d6 {[%emt 0:00:00]} 3. Bb5+ {[%emt 0:00:00]} Bd7 {[%emt 0:00:00]} 4. Bxd7+ {[%emt 0:00:00]} Qxd7 {[%emt 0:00:00]} 5. c4 {[%emt 0:00:06]} e5 {[%emt 0:00:14]} 6. d3 {[%emt 0:00:56]} g6 {[%emt 0:00:51]} 7. O-O {[%emt 0:00:59]} Bg7 {[%emt 0:00:17]} 8. Nc3 {[%emt 0:02:01]} Ne7 {[%emt 0:00:46]} 9. h3 {[%emt 0:06:50]} O-O {[%emt 0:01:32]} 10. Nh2 {[%emt 0:00:39]} f5 {[%emt 0:05:17]} 11. f4 {[%emt 0:10:48]} Nbc6 {[%emt 0:08:56]} 12. Be3 {[%emt 0:06:07]} Rad8 {[%emt 0:13:20]} 13. Qd2 {[%emt 0:03:50]} b6 {[%emt 0:06:58]} 14. Rab1 {[%emt 0:01:34]} Rf7 {[%emt 0:05:00]} 15. Nf3 {[%emt 0:05:31]} Bh6 {[%emt 0:03:15]} 16. fxe5 {[%emt 0:02:57]} f4 {[%emt 0:04:11]} 17. Bf2 {[%emt 0:00:50]} dxe5 {[%emt 0:00:27]} 18. Nd5 {[%emt 0:00:34]} g5 {[%emt 0:04:09]} 19. Nh2 {[%emt 0:04:18]} Nxd5 {[%emt 0:05:02]} 20. exd5 {[%emt 0:02:17]} Ne7 {[%emt 0:01:01]} 21. Qe2 {[%emt 0:03:02]} Bg7 {[%emt 0:10:11]} 22. Ng4 {[%emt 0:04:14]} Ng6 {[%emt 0:02:12]} 23. Be1 {[%emt 0:04:46]} Rdf8 {[%emt 0:02:46]} 24. Qf3 {[%emt 0:05:30]} Rf5 {[%emt 0:07:51]} 25. a3 {[%emt 0:05:02]} Qd6 {[%emt 0:02:44]} 26. b4 {[%emt 0:02:26]} Nh4 {[%emt 0:02:35]} 27. Bxh4 {[%emt 0:01:30]} gxh4 {[%emt 0:00:10]} 28. Nf2 {[%emt 0:02:51]} Kh8 {[%emt 0:08:35]} 29. Ne4 {[%emt 0:01:39]} Qc7 {[%emt 0:00:36]} 30. bxc5 {[%emt 0:01:22]} bxc5 {[%emt 0:00:37]} 31. Rb5 {[%emt 0:00:53]} Rb8 {[%emt 0:01:46]} 32. Rfb1 {[%emt 0:03:59]} Rxb5 {[%emt 0:00:41]} 33. Rxb5 {[%emt 0:00:07]} Bf8 {[%emt 0:00:52]} 34. Qg4 {[%emt 0:00:42]} Rf7 {[%emt 0:00:31]} 35. Ng5 {[%emt 0:06:33]} Rg7 {[%emt 0:00:43]} 36. Ne6 {[%emt 0:00:14]} Rxg4 {[%emt 0:00:11]} 37. Nxc7 {[%emt 0:00:02]} Rg7 {[%emt 0:01:04]} 38. Ne6 {[%emt 0:01:23]} Rg8 {[%emt 0:00:48]} 39. Nxf8 {[%emt 0:01:00]} Rxf8 {[%emt 0:00:05]} 40. Rxc5 {[%emt 0:00:26]} Kg8 {[%emt 0:00:53]} 41. Ra5 {[%emt 0:31:29]} Rf7 {[%emt 0:31:17]} 42. d6 {[%emt 0:01:11]} Rd7 {[%emt 0:01:07]} 43. c5 {[%emt 0:00:44]} Kf7 {[%emt 0:00:18]} 44. Ra6 {[%emt 0:01:58]} Ke6 {[%emt 0:00:52]} 45. c6 {[%emt 0:00:54]} Rd8 {[%emt 0:00:42]} 46. c7 {[%emt 0:02:43]} Rc8 {[%emt 0:00:00]} 47. Kf2 {[%emt 0:00:00]} Kd7 {[%emt 0:00:00]} 48. Kf3 {[%emt 0:00:00]} Rg8 {[%emt 0:00:00]} 49. Rxa7 {[%emt 0:00:00]} Kxd6 {[%emt 0:00:00]} 50. Ke4 {[%emt 0:00:00]} Rc8 {[%emt 0:00:00]} 51. Rb7 {normal Kd5+} 1-0

[Event "GER-ch Youth U18w 2019"]
[Site "Willingen"]
[Date "2019.06.12"]
[Round "6.5"]
[White "Reitz, Theresa"]
[Black "Koehler, Inken"]
[Result "0-1"]
[ECO "A06"]
[WhiteElo "1976"]
[BlackElo "1975"]
[Annotator "NA"]
[PlyCount "64"]
[EventDate "2019.06.07"]
[EventType "swiss"]
[EventRounds "9"]
[EventCountry "GER"]
[SourceTitle "playchess.com"]
[Source "ChessBase"]
[SourceQuality "1"]
[TimeControl "40/5400+30:1800+30"]

1. Nf3 {[%emt 0:00:00]} d5 {[%emt 0:00:00]} 2. g3 {[%emt 0:00:00]} c6 {[%emt 0:00:00]} 3. Bg2 {[%emt 0:00:00]} Bf5 {[%emt 0:00:00]} 4. O-O {[%emt 0:01:12]} h6 {[%emt 0:00:21]} 5. d4 {[%emt 0:03:00]} Nf6 {[%emt 0:01:14]} 6. b3 {[%emt 0:00:54]} e6 {[%emt 0:00:19]} 7. Bb2 {[%emt 0:00:16]} Be7 {[%emt 0:00:29]} 8. c4 {[%emt 0:00:26]} O-O {[%emt 0:00:36]} 9. Nc3 {[%emt 0:01:04]} Nbd7 {[%emt 0:02:30]} 10. Nd2 {[%emt 0:03:24]} Bh7 {[%emt 0:04:36]} 11. e4 {[%emt 0:00:24]} dxe4 {[%emt 0:00:16]} 12. Ndxe4 {[%emt 0:00:42]} Nxe4 {[%emt 0:01:01]} 13. Nxe4 {[%emt 0:00:21]} Nf6 {[%emt 0:00:58]} 14. Nc5 {[%emt 0:00:46]} Qc7 {[%emt 0:06:17]} 15. Qe2 {[%emt 0:02:45]} Rad8 {[%emt 0:02:17]} 16. Rfe1 {[%emt 0:18:54]} Rfe8 {[%emt 0:06:02]} 17. Rad1 {[%emt 0:03:15]} e5 {[%emt 0:14:10]} 18. Ne4 {[%emt 0:19:26]} Bxe4 {[%emt 0:01:34]} 19. Bxe4 {[%emt 0:00:15]} Bb4 {[%emt 0:01:43]} 20. dxe5 {[%emt 0:06:54]} Nxe4 {[%emt 0:01:08]} 21. Qxe4 {[%emt 0:00:44]} Bxe1 {[%emt 0:00:19]} 22. Rxe1 {[%emt 0:00:06]} Qa5 {[%emt 0:03:24]} 23. a3 {[%emt 0:03:09]} Qd2 {[%emt 0:06:14]} 24. Re2 {[%emt 0:02:33]} Qd3 {[%emt 0:05:17]} 25. Qg4 {[%emt 0:02:44]} Qd1+ {[%emt 0:07:22]} 26. Kg2 {[%emt 0:00:18]} Re6 {[%emt 0:00:31]} 27. Qf3 {[%emt 0:04:55]} Qb1 {[%emt 0:05:05]} 28. Qe4 {[%emt 0:03:09]} Qxe4+ {[%emt 0:03:26]} 29. Rxe4 {[%emt 0:00:06]} Rd3 {[%emt 0:10:07]} 30. Re3 {[%emt 0:01:19]} Rxe3 {[%emt 0:00:28]} 31. fxe3 {[%emt 0:00:08]} c5 {[%emt 0:01:17]} 32. Kf3 {[%emt 0:00:18]} Rb6 {[%emt 0:00:52] normal} 0-1

[Event "GER-ch Youth U18w 2019"]
[Site "Willingen"]
[Date "2019.06.12"]
[Round "6.6"]
[White "Tampe, Friederike"]
[Black "Ziegenfuss, Antonia"]
[Result "0-1"]
[ECO "B40"]
[WhiteElo "1512"]
[BlackElo "2111"]
[Annotator "NA"]
[PlyCount "76"]
[EventDate "2019.06.07"]
[EventType "swiss"]
[EventRounds "9"]
[EventCountry "GER"]
[SourceTitle "playchess.com"]
[Source "ChessBase"]
[SourceQuality "1"]
[TimeControl "40/5400+30:1800+30"]

1. e4 {[%emt 0:00:00]} c5 {[%emt 0:00:00]} 2. Nf3 {[%emt 0:00:00]} e6 {[%emt 0:00:00]} 3. d4 {[%emt 0:00:00]} cxd4 {[%emt 0:00:00]} 4. Nxd4 {[%emt 0:00:00]} Nf6 {[%emt 0:00:01]} 5. Nc3 {[%emt 0:00:02]} Nc6 {[%emt 0:00:06]} 6. Ndb5 {[%emt 0:00:33]} Bc5 {[%emt 0:00:12]} 7. Bf4 {[%emt 0:00:27]} O-O {[%emt 0:00:39]} 8. Bc7 {[%emt 0:00:32]} Qe7 {[%emt 0:00:11]} 9. Bd6 {[%emt 0:00:17]} Bxd6 {[%emt 0:00:06]} 10. Qxd6 {[%emt 0:00:03]} Qd8 {[%emt 0:02:48]} 11. O-O-O {[%emt 0:01:07]} a6 {[%emt 0:10:50]} 12. Nd4 {[%emt 0:01:52]} Qb6 {[%emt 0:01:10]} 13. Nxc6 {[%emt 0:01:55]} bxc6 {[%emt 0:00:13]} 14. f3 {[%emt 0:00:09]} Ne8 {[%emt 0:14:12]} 15. Qd4 {[%emt 0:02:14]} Qc7 {[%emt 0:03:37]} 16. e5 {[%emt 0:02:13]} c5 {[%emt 0:04:58]} 17. Qe3 {[%emt 0:05:33]} f6 {[%emt 0:15:27]} 18. Ne4 {[%emt 0:12:12]} Qxe5 {[%emt 0:07:11]} 19. Qxc5 {[%emt 0:00:13]} d5 {[%emt 0:01:41]} 20. Nc3 {[%emt 0:02:37]} Rf7 {[%emt 0:08:49]} 21. g3 {[%emt 0:13:07]} Qb8 {[%emt 0:12:46]} 22. Qc6 {[%emt 0:07:45]} Bd7 {[%emt 0:02:44]} 23. Qc5 {[%emt 0:00:35]} Qb7 {[%emt 0:01:27]} 24. Bg2 {[%emt 0:03:23]} Rb8 {[%emt 0:01:57]} 25. b3 {[%emt 0:03:00]} Rc8 {[%emt 0:01:00]} 26. Qd4 {[%emt 0:04:13]} Qc7 {[%emt 0:02:26]} 27. Rd3 {[%emt 0:00:19]} Nd6 {[%emt 0:02:05]} 28. a4 {[%emt 0:04:01]} Nf5 {[%emt 0:01:28]} 29. Qf2 {[%emt 0:00:15]} Qa5 {[%emt 0:01:36]} 30. Kb2 {[%emt 0:03:55]} Be8 {[%emt 0:02:10]} 31. g4 {[%emt 0:04:10]} Nd6 {[%emt 0:01:50]} 32. Rc1 {[%emt 0:01:07]} Rfc7 {[%emt 0:00:20]} 33. Ne2 {[%emt 0:00:20]} Rb8 {[%emt 0:01:30]} 34. Ra1 {[%emt 0:04:57]} Bg6 {[%emt 0:00:13]} 35. Rc3 {[%emt 0:01:49]} Rxc3 {[%emt 0:00:12]} 36. Nxc3 {[%emt 0:00:05]} Nc4+ {[%emt 0:00:11]} 37. Ka2 {[%emt 0:07:46]} Qxc3 {[%emt 0:00:16]} 38. Rb1 {[%emt 0:02:43]} Bxc2 {[%emt 0:00:16] normal} 0-1

[Event "GER-ch Youth U18w 2019"]
[Site "Willingen"]
[Date "2019.06.12"]
[Round "6.7"]
[White "Koenze, Heike"]
[Black "Alferova, Ekaterina"]
[Result "1/2-1/2"]
[ECO "B18"]
[WhiteElo "1919"]
[BlackElo "1597"]
[Annotator "NA"]
[PlyCount "97"]
[EventDate "2019.06.07"]
[EventType "swiss"]
[EventRounds "9"]
[EventCountry "GER"]
[SourceTitle "playchess.com"]
[Source "ChessBase"]
[SourceQuality "1"]
[TimeControl "40/5400+30:1800+30"]

1. e4 {[%emt 0:00:00]} c6 {[%emt 0:00:00]} 2. d4 {[%emt 0:00:00]} d5 {[%emt 0:00:00]} 3. Nc3 {[%emt 0:00:00]} dxe4 {[%emt 0:00:06]} 4. Nxe4 {[%emt 0:00:02]} Bf5 {[%emt 0:00:10]} 5. Ng3 {[%emt 0:00:09]} Bg6 {[%emt 0:00:09]} 6. Nf3 {[%emt 0:00:11]} h6 {[%emt 0:00:45]} 7. Bc4 {[%emt 0:00:53]} e6 {[%emt 0:02:29]} 8. O-O {[%emt 0:01:45]} Nd7 {[%emt 0:00:55]} 9. c3 {[%emt 0:01:28]} Bd6 {[%emt 0:02:52]} 10. Re1 {[%emt 0:00:41]} Ngf6 {[%emt 0:05:53]} 11. Qe2 {[%emt 0:02:11]} Qe7 {[%emt 0:05:14]} 12. Bd2 {[%emt 0:03:23]} Bxg3 {[%emt 0:02:52]} 13. hxg3 {[%emt 0:00:43]} O-O {[%emt 0:00:58]} 14. Nh4 {[%emt 0:00:43]} Bh7 {[%emt 0:00:36]} 15. Bd3 {[%emt 0:01:20]} Bxd3 {[%emt 0:01:57]} 16. Qxd3 {[%emt 0:00:07]} Qd8 {[%emt 0:01:01]} 17. c4 {[%emt 0:03:49]} Nb6 {[%emt 0:12:48]} 18. Bb4 {[%emt 0:02:40]} Re8 {[%emt 0:00:40]} 19. Rad1 {[%emt 0:00:23]} Qd7 {[%emt 0:03:07]} 20. b3 {[%emt 0:00:37]} Rad8 {[%emt 0:00:43]} 21. Qf3 {[%emt 0:01:05]} Qc8 {[%emt 0:08:52]} 22. Bc3 {[%emt 0:02:58]} Nbd7 {[%emt 0:02:42]} 23. Qe3 {[%emt 0:06:07]} Qb8 {[%emt 0:07:59]} 24. Nf3 {[%emt 0:07:03]} Ng4 {[%emt 0:08:46]} 25. Qe2 {[%emt 0:00:21]} Ngf6 {[%emt 0:01:10]} 26. Nh2 {[%emt 0:01:35]} Qc7 {[%emt 0:02:47]} 27. Qe3 {[%emt 0:00:52]} Qb8 {[%emt 0:01:13]} 28. g4 {[%emt 0:01:22]} Nh7 {[%emt 0:02:50]} 29. f4 {[%emt 0:01:32]} Nhf8 {[%emt 0:02:54]} 30. Nf3 {[%emt 0:09:58]} Ng6 {[%emt 0:01:11]} 31. g3 {[%emt 0:05:43]} Nf6 {[%emt 0:05:12]} 32. g5 {[%emt 0:01:06]} hxg5 {[%emt 0:00:39]} 33. Nxg5 {[%emt 0:00:13]} Ne7 {[%emt 0:05:20]} 34. Qe2 {[%emt 0:05:36]} Ng6 {[%emt 0:01:02]} 35. Qh2 {[%emt 0:01:27]} Qd6 {[%emt 0:01:40]} 36. Rd2 {[%emt 0:05:07]} c5 {[%emt 0:03:05]} 37. Red1 {[%emt 0:03:12]} a6 {[%emt 0:02:26]} 38. a3 {[%emt 0:06:05]} Qc6 {[%emt 0:01:51]} 39. Bb2 {[%emt 0:05:23]} Qb6 {[%emt 0:01:26]} 40. Rd3 {[%emt 0:05:25]} Qc6 {[%emt 0:00:49]} 41. Kf1 {[%emt 0:31:53]} Kf8 {[%emt 0:14:12]} 42. dxc5 {[%emt 0:00:00]} Rxd3 {[%emt 0:01:12]} 43. Rxd3 {[%emt 0:00:00]} Qxc5 {[%emt 0:01:22]} 44. Nh7+ {[%emt 0:00:00]} Ke7 {[%emt 0:06:56]} 45. Nxf6 {[%emt 0:00:00]} gxf6 {[%emt 0:00:17]} 46. Qd2 {[%emt 0:00:00]} Rh8 {[%emt 0:03:05]} 47. Rd7+ {[%emt 0:00:00]} Kf8 {[%emt 0:00:11]} 48. Qg2 {[%emt 0:00:00]} Qf5 {[%emt 0:01:56]} 49. Rd1 {[%emt 0:00:00] normal} 1/2-1/2

[Event "GER-ch Youth U18w 2019"]
[Site "Willingen"]
[Date "2019.06.12"]
[Round "6.8"]
[White "Kobald, Jacqueline"]
[Black "Browning, Rebecca"]
[Result "1-0"]
[ECO "C11"]
[WhiteElo "1839"]
[BlackElo "1923"]
[Annotator "NA"]
[PlyCount "67"]
[EventDate "2019.06.07"]
[EventType "swiss"]
[EventRounds "9"]
[EventCountry "GER"]
[SourceTitle "playchess.com"]
[Source "ChessBase"]
[SourceQuality "1"]
[TimeControl "40/5400+30:1800+30"]

1. e4 {[%emt 0:00:00]} e6 {[%emt 0:00:00]} 2. d4 {[%emt 0:00:00]} d5 {[%emt 0:00:00]} 3. Nc3 {[%emt 0:00:00]} Nf6 {[%emt 0:00:00]} 4. Bg5 {[%emt 0:00:13]} dxe4 {[%emt 0:00:21]} 5. Nxe4 {[%emt 0:00:08]} Be7 {[%emt 0:00:09]} 6. Bxf6 {[%emt 0:00:30]} Bxf6 {[%emt 0:00:15]} 7. Nf3 {[%emt 0:00:22]} O-O {[%emt 0:00:51]} 8. Qd2 {[%emt 0:01:55]} Nd7 {[%emt 0:02:51]} 9. O-O-O {[%emt 0:00:55]} c6 {[%emt 0:02:19]} 10. h4 {[%emt 0:05:33]} b5 {[%emt 0:04:41]} 11. Bd3 {[%emt 0:06:21]} a5 {[%emt 0:02:20]} 12. Neg5 {[%emt 0:06:04]} h6 {[%emt 0:01:28]} 13. Nh7 {[%emt 0:02:10]} Re8 {[%emt 0:01:43]} 14. Nxf6+ {[%emt 0:01:28]} Qxf6 {[%emt 0:01:03]} 15. Be4 {[%emt 0:09:35]} Bb7 {[%emt 0:03:17]} 16. g4 {[%emt 0:00:57]} Qe7 {[%emt 0:00:29]} 17. Rhg1 {[%emt 0:08:21]} Red8 {[%emt 0:02:32]} 18. Qe3 {[%emt 0:04:43]} Re8 {[%emt 0:11:10]} 19. g5 {[%emt 0:08:10]} h5 {[%emt 0:00:06]} 20. g6 {[%emt 0:01:18]} f5 {[%emt 0:00:38]} 21. Bd3 {[%emt 0:00:16]} b4 {[%emt 0:01:11]} 22. Rde1 {[%emt 0:05:29]} Qd6 {[%emt 0:05:52]} 23. Bc4 {[%emt 0:02:24]} Nf8 {[%emt 0:02:22]} 24. Ng5 {[%emt 0:08:37]} Bc8 {[%emt 0:00:49]} 25. Nf7 {[%emt 0:03:21]} Qe7 {[%emt 0:00:50]} 26. Qf3 {[%emt 0:02:31]} Qxh4 {[%emt 0:01:07]} 27. Ne5 {[%emt 0:03:58]} Bb7 {[%emt 0:05:31]} 28. Qxf5 {[%emt 0:03:00]} Kh8 {[%emt 0:04:44]} 29. Qf3 {[%emt 0:01:18]} Re7 {[%emt 0:04:41]} 30. Rh1 {[%emt 0:03:30]} Qg5+ {[%emt 0:00:05]} 31. Kb1 {[%emt 0:00:07]} h4 {[%emt 0:00:14]} 32. Reg1 {[%emt 0:03:12]} Qh6 {[%emt 0:00:29] normal} 33. Nf7+ {[%emt 0:01:46]} Rxf7 {[%emt 0:00:07]} 34. Qxf7 {[%emt 0:00:14] normal} 1-0